bitfinex/quotes_SOLUSD_20240711
["timestamp","ask_amount","ask_price","bid_price","bid_amount"]
[1720713275080,7.0263568,138.54,138.49,18.0512]
[1720713275274,7.0263568,138.54,138.47,7.2214]
[1720713275781,7.0263568,138.54,138.48,18.0527]
[1720713275987,7.0263568,138.54,138.48,25.2736]
[1720713276483,7.0263568,138.54,138.46,7.2219]
[1720713276686,15.6213,138.53,138.41,136.1229]
[1720713276991,15.6213,138.53,138.37,6.1923]
[1720713277195,7.2214,138.48,138.4,7.2254]
[1720713277380,18.0503,138.51,138.39,18.0639]
[1720713277584,22.5037,138.45,138.38,7.2261]
[1720713278687,29.7266,138.45,138.37,7.2269]
[1720713278892,22.5037,138.45,138.38,7.2264]
[1720713279102,22.5037,138.45,138.37,36.1347]
[1720713279693,22.5037,138.45,138.37,57.7547]
[1720713280001,22.5037,138.45,138.41,7.2248]
[1720713280209,22.5037,138.45,138.41,25.2866]
[1720713280508,22.5037,138.45,138.42,7.2242]
[1720713280699,22.5037,138.45,138.41,25.2866]
[1720713281102,22.5037,138.45,138.41,18.0618]
[1720713281288,22.5037,138.45,138.38,18.0652]
[1720713281485,29.7266,138.45,138.37,7.2269]
[1720713281715,22.5037,138.45,138.35,18.0693]
[1720713281892,7.2237,138.44,138.35,25.2971]
[1720713282094,22.5037,138.45,138.35,25.2971]
[1720713282301,7.2235,138.44,138.36,7.2275]
[1720713282694,7.2238,138.43,138.35,25.2971]
[1720713283015,22.5037,138.45,138.35,18.0693]
[1720713283212,7.2239,138.43,138.35,18.0693]
[1720713283394,22.5037,138.45,138.36,1.44487916]
[1720713283593,29.7266,138.45,138.37,7.2269]
[1720713283916,22.5037,138.45,138.37,18.0671]
[1720713284091,29.7267,138.45,138.37,7.2268]
[1720713284513,7.2233,138.44,138.36,25.2956]
[1720713284817,7.2244,138.42,138.34,7.2281]
[1720713284990,7.224,138.43,138.35,7.228]
[1720713285409,7.2245,138.42,138.34,7.2283]
[1720713285917,7.224,138.43,138.35,7.228]
[1720713286105,7.2235,138.44,138.36,7.2275]
[1720713286414,22.5037,138.45,138.35,18.0697]
[1720713286612,22.5037,138.45,138.36,7.2274]
[1720713286804,22.5037,138.45,138.35,18.0697]
[1720713287004,22.5037,138.45,138.35,25.2974]
[1720713287210,7.2253,138.41,138.33,7.2289]
[1720713287518,40.5615,138.45,138.34,7.2284]
[1720713287519,7.2244,138.42,138.34,7.2284]
[1720713287722,7.2239,138.43,138.34,18.0712]
[1720713287899,7.2239,138.43,138.34,25.2993]
[1720713288099,7.2239,138.43,138.35,7.2278]
[1720713288310,22.5037,138.45,138.36,18.0685]
[1720713288510,29.7268,138.45,138.36,18.0685]
[1720713288712,29.7268,138.45,138.36,25.2956]
[1720713288914,7.2234,138.44,138.36,18.0685]
[1720713289297,22.5037,138.45,138.36,18.0685]
[1720713289617,7.2239,138.43,138.36,18.0685]
[1720713289997,7.2244,138.42,138.34,7.2284]
[1720713290419,22.5037,138.45,138.35,18.0697]
[1720713290629,29.7266,138.45,138.37,7.2268]
[1720713290822,22.5037,138.45,138.37,18.0671]
[1720713291118,22.5037,138.45,138.35,7.2278]
[1720713291119,7.2233,138.44,138.35,7.2278]
[1720713291324,7.2239,138.43,138.35,7.2278]
[1720713291526,7.2235,138.44,138.36,7.2273]
[1720713291824,22.5037,138.45,138.36,7.2274]
[1720713292022,22.5037,138.45,138.35,7.2279]
[1720713292225,7.2234,138.44,138.36,7.2273]
[1720713292525,29.7267,138.45,138.37,7.2269]
[1720713292723,22.5037,138.45,138.37,7.2269]
[1720713292917,22.5037,138.45,138.36,18.0685]
[1720713293226,22.5037,138.45,138.38,18.066]
[1720713293903,29.7266,138.45,138.38,18.066]
[1720713294203,22.5037,138.45,138.36,21.72]
[1720713294410,29.7265,138.45,138.37,25.2934]
[1720713294598,22.5037,138.45,138.38,7.2262]
[1720713295322,22.5037,138.45,138.39,7.2259]
[1720713295903,22.5037,138.45,138.41,7.2245]
[1720713297109,14.15440378,138.49,138.41,7.2245]
[1720713297315,35.77210378,138.49,138.4,7.2252]
[1720713297714,35.77210378,138.49,138.41,7.2247]
[1720713298126,28.8386,138.49,138.41,7.2247]
[1720713298423,7.2215,138.48,138.4,7.2252]
[1720713299140,21.6177,138.49,138.39,25.2898]
[1720713299141,7.2221,138.47,138.39,25.2898]
[1720713299307,7.2214,138.48,138.4,7.225]
[1720713299632,28.8385,138.49,138.41,7.2248]
[1720713300034,21.6177,138.49,138.41,18.0619]
[1720713300246,21.6177,138.49,138.45,7.2228]
[1720713300408,21.6177,138.49,138.44,7.2231]
[1720713300823,21.6177,138.49,138.43,18.0594]
[1720713301104,21.6177,138.49,138.43,25.2831]
[1720713301323,21.6177,138.49,138.44,7.2232]
[1720713301610,21.6177,138.49,138.47,7.2214]
[1720713301818,21.6177,138.49,138.48,7.2212]
[1720713302007,22.0987,138.53,138.47,18.0542]
[1720713302536,22.0987,138.53,138.42,0.17]
[1720713302847,22.0987,138.53,138.41,25.2865]
[1720713302848,7.221,138.49,138.41,25.2865]
[1720713303011,13.6042,138.47,138.38,18.065]
[1720713303206,6.3824,138.47,138.38,18.065]
[1720713303525,6.3824,138.47,138.42,7.2242]
[1720713303724,6.3824,138.47,138.42,18.0608]
[1720713304026,6.3824,138.47,138.43,7.2237]
[1720713304207,6.3824,138.47,138.44,25.2811]
[1720713304604,6.3824,138.47,138.44,18.0582]
[1720713304806,6.3824,138.47,138.44,7.2232]
[1720713305213,7.2192,138.52,138.39,136.1281]
[1720713305214,6.506,138.52,138.43,21.72]
[1720713305429,6.506,138.52,138.42,18.0599]
[1720713305608,7.2206,138.5,138.42,25.2841]
[1720713305809,18.0493,138.51,138.39,25.2896]
[1720713306017,7.2203,138.5,138.42,7.2243]
[1720713306237,7.2208,138.49,138.41,25.2867]
[1720713306436,6.506,138.52,138.41,18.0619]
[1720713306647,7.2213,138.48,138.4,7.2253]
[1720713306824,7.2214,138.48,138.4,7.2254]
[1720713307029,7.2213,138.48,138.4,25.2882]
[1720713307427,6.6035,138.46,138.38,7.2263]
[1720713307937,13.8262,138.46,138.38,7.2263]
[1720713308146,6.6035,138.46,138.38,7.2263]
[1720713308518,6.6035,138.46,138.37,25.2934]
[1720713308726,6.6035,138.46,138.33,136.1434]
[1720713308931,6.6035,138.46,138.35,7.2278]
[1720713309223,6.1937,138.39,138.32,7.2292]
[1720713309724,6.1937,138.39,138.33,7.229]
[1720713309914,6.1937,138.39,138.34,7.2283]
[1720713310111,6.1937,138.39,138.32,121.72]
[1720713310317,15.2379,138.4,138.34,121.72]
[1720713310516,6.423,138.43,138.38,18.0654]
[1720713310742,6.423,138.43,138.4,18.0631]
[1720713311248,6.423,138.43,138.4,25.2881]
[1720713311633,6.423,138.43,138.4,18.0631]
[1720713311833,6.423,138.43,138.37,18.0668]
[1720713312251,6.423,138.43,138.34,18.0704]
[1720713312545,7.2244,138.42,138.34,18.0704]
[1720713312752,6.423,138.43,138.34,18.0704]
[1720713313051,6.1868,138.38,138.31,18.0742]
[1720713313255,13.4134,138.38,138.28,18.0782]
[1720713313743,6.1868,138.38,138.31,7.2301]
[1720713313921,6.1868,138.38,138.3,18.0764]
[1720713314125,6.1868,138.38,138.31,7.2297]
[1720713314332,6.1868,138.38,138.3,25.3067]
[1720713315016,6.1868,138.38,138.3,18.0764]
[1720713315218,15.6338,138.37,138.27,18.08]
[1720713315433,7.2283,138.35,138.27,25.3121]
[1720713315646,15.6338,138.37,138.27,18.08]
[1720713315647,7.2286,138.34,138.27,18.08]
[1720713315833,7.228,138.35,138.27,25.3121]
[1720713316135,7.2285,138.34,138.27,18.08]
[1720713316334,15.6338,138.37,138.27,18.08]
[1720713316536,7.2283,138.35,138.27,25.3121]
[1720713316852,7.2276,138.36,138.28,7.2316]
[1720713317652,15.6338,138.37,138.3,7.2302]
[1720713317858,15.6338,138.37,138.29,18.0776]
[1720713318022,7.2277,138.36,138.28,7.2314]
[1720713318227,15.6338,138.37,138.31,7.23]
[1720713318540,15.6338,138.37,138.3,18.0762]
[1720713318839,15.6338,138.37,138.31,7.2299]
[1720713319446,7.2276,138.36,138.28,7.2313]
[1720713319655,15.6338,138.37,138.27,18.0798]
[1720713319857,7.2282,138.35,138.27,25.3118]
[1720713320029,22.8609,138.37,138.27,18.0798]
[1720713320230,15.6338,138.37,138.29,18.0777]
[1720713320527,15.6338,138.37,138.31,7.2299]
[1720713320735,15.6338,138.37,138.32,7.2296]
[1720713320942,15.6338,138.37,138.33,7.2288]
[1720713321154,15.6338,138.37,138.33,18.0725]
[1720713321356,16.576,138.41,138.35,18.0697]
[1720713321559,16.576,138.41,138.38,7.2263]
[1720713321735,16.576,138.41,138.39,1.44488397]
[1720713321936,16.576,138.41,138.39,7.2258]
[1720713322151,6.5019,138.42,138.38,7.2263]
[1720713322350,6.5019,138.42,138.37,25.2939]
[1720713322725,6.5019,138.42,138.37,18.067]
[1720713322949,6.5019,138.42,138.35,7.2278]
[1720713323262,6.5019,138.42,138.36,18.0681]
[1720713323433,6.5019,138.42,138.35,121.72]
[1720713323633,6.5019,138.42,138.38,18.0656]
[1720713323842,6.5019,138.42,138.36,7.2273]
[1720713324148,6.5019,138.42,138.23,15.0]
[1720713324149,7.2249,138.41,138.32,18.0731]
[1720713324347,15.4119,138.38,138.26,200.0]
[1720713324558,7.2284,138.35,138.23,6.3242]
[1720713324860,7.2276,138.36,138.27,7.232]
[1720713325063,7.2276,138.36,138.28,7.2316]
[1720713325236,7.2276,138.36,138.27,25.3119]
[1720713326069,13.4039,138.37,138.28,7.2316]
[1720713326366,13.4039,138.37,138.27,18.0802]
[1720713326367,6.1768,138.37,138.27,25.3124]
[1720713326729,6.1768,138.37,138.24,18.0835]
[1720713326937,6.1768,138.37,138.25,221.72]
[1720713327143,6.1768,138.37,138.28,21.72]
[1720713327347,6.1768,138.37,138.31,18.075]
[1720713327547,6.1768,138.37,138.34,7.2285]
[1720713328049,6.1768,138.37,138.33,25.3012]
[1720713328236,6.1768,138.37,138.34,7.2285]
[1720713328555,6.1768,138.37,138.33,18.0724]
[1720713328752,6.1768,138.37,138.32,7.2291]
[1720713329053,6.1768,138.37,138.33,7.229]
[1720713329246,6.1768,138.37,138.34,7.2283]
[1720713329643,6.3326,138.41,138.34,39.791]
[1720713329856,16.3777,138.42,138.37,7.2265]
[1720713330653,16.3777,138.42,138.36,25.2959]
[1720713331168,16.3777,138.42,138.37,7.2268]
[1720713331338,16.3777,138.42,138.36,25.2958]
[1720713331537,16.3777,138.42,138.33,154.3857]
[1720713331863,16.3777,138.42,138.34,7.2282]
[1720713332246,16.3777,138.42,138.35,7.2278]
[1720713332433,16.3777,138.42,138.33,18.0722]
[1720713332633,7.2259,138.39,138.31,7.2297]
[1720713332836,7.2256,138.4,138.32,7.2295]
[1720713333035,6.4018,138.37,138.3,25.3059]
[1720713333444,6.4018,138.37,138.27,54.2404]
[1720713333748,6.4018,138.37,138.29,18.0777]
[1720713334062,6.4018,138.37,138.31,39.7947]
[1720713334362,6.4018,138.37,138.33,18.0719]
[1720713334547,6.4018,138.41,138.31,21.72]
[1720713334754,6.4018,138.41,138.35,18.0697]
[1720713335055,6.4018,138.41,138.37,7.2266]
[1720713335259,6.4018,138.41,138.35,18.0697]
[1720713335467,6.4018,138.41,138.35,25.2973]
[1720713335672,6.4018,138.41,138.36,7.2272]
[1720713335861,6.4018,138.41,138.35,25.2975]
[1720713336038,6.4018,138.41,138.35,18.0697]
[1720713336377,6.4018,138.41,138.37,7.2268]
[1720713336535,6.4018,138.41,138.38,7.59772953]
[1720713336741,6.4018,138.41,138.37,25.2939]
[1720713337176,6.4018,138.41,138.37,18.0671]
[1720713337456,6.4018,138.41,138.34,100.17]
[1720713337457,6.4018,138.41,138.34,25.2983]
[1720713338670,6.4018,138.41,138.35,7.228]
[1720713339047,6.4018,138.41,138.34,18.0701]
[1720713339351,13.6271,138.41,138.31,39.7946]
[1720713339556,13.6271,138.41,138.33,7.2287]
[1720713340063,6.4018,138.41,138.34,7.2285]
[1720713340456,13.6268,138.41,138.33,25.3016]
[1720713340652,13.6268,138.41,138.32,0.34]
[1720713340653,7.2254,138.4,138.32,7.2294]
[1720713340958,6.4018,138.41,138.3,25.3057]
[1720713340959,7.2265,138.38,138.3,25.3057]
[1720713341164,7.2261,138.39,138.31,7.23]
[1720713341739,6.4018,138.41,138.32,25.303]
[1720713342041,6.4018,138.41,138.32,18.0738]
[1720713342237,6.4018,138.41,138.27,21.72]
[1720713342238,6.4018,138.41,138.29,18.0773]
[1720713342442,24.4646,138.41,138.29,18.0773]
[1720713342758,6.2575,138.33,138.27,7.2322]
[1720713342983,22.7672,138.31,138.23,21.72]
[1720713343278,15.537,138.31,138.25,7.2332]
[1720713343777,15.537,138.31,138.24,7.2336]
[1720713344065,15.537,138.31,138.25,7.233]
[1720713344244,15.537,138.31,138.27,7.2322]
[1720713344455,15.537,138.31,138.26,7.2325]
[1720713344649,15.537,138.31,138.27,7.2321]
[1720713345249,15.537,138.31,138.25,18.0829]
[1720713345860,15.537,138.31,138.27,7.2318]
[1720713346170,15.537,138.31,138.29,7.2311]
[1720713346377,15.537,138.31,138.27,39.8001]
[1720713346378,6.2575,138.33,138.28,7.2315]
[1720713346567,6.2575,138.33,138.27,18.0801]
[1720713346759,6.2575,138.33,138.28,7.2316]
[1720713346951,6.2575,138.33,138.29,7.2309]
[1720713347151,31.7,138.42,138.27,39.8001]
[1720713347152,22.3734,138.39,138.35,7.2275]
[1720713347353,22.3734,138.39,138.34,25.2991]
[1720713347753,22.3734,138.39,138.34,18.0708]
[1720713348363,22.3734,138.39,138.34,25.2991]
[1720713348674,22.6546,138.43,138.37,7.2268]
[1720713348871,22.6546,138.43,138.36,18.0683]
[1720713349769,7.2248,138.42,138.34,7.2285]
[1720713350374,22.6546,138.43,138.31,100.0]
[1720713350562,22.6546,138.43,138.32,0.34]
[1720713350756,29.8788,138.43,138.34,18.0712]
[1720713350968,29.8788,138.43,138.35,7.2276]
[1720713351255,22.6546,138.43,138.33,7.2286]
[1720713351664,7.2245,138.42,138.33,7.2286]
[1720713351868,7.2245,138.42,138.34,7.2285]
[1720713352183,29.8786,138.43,138.34,7.2285]
[1720713352360,22.6546,138.43,138.37,7.2269]
[1720713352564,22.6546,138.43,138.37,25.2934]
[1720713352771,22.6546,138.43,138.35,7.3975]
[1720713352979,22.6546,138.43,138.32,0.17]
[1720713353151,22.6546,138.43,138.32,0.34]
[1720713353358,7.2247,138.42,138.33,18.0724]
[1720713353664,29.8786,138.43,138.34,7.3982]
[1720713353882,29.8786,138.43,138.35,0.17]
[1720713354084,29.8786,138.43,138.35,7.3977]
[1720713355215,22.6546,138.43,138.36,7.2275]
[1720713355797,22.6546,138.43,138.37,7.2267]
[1720713355993,22.6546,138.43,138.37,25.2941]
[1720713356194,22.6546,138.43,138.38,7.2264]
[1720713356415,22.6546,138.43,138.39,7.2258]
[1720713356710,22.6546,138.43,138.38,7.2262]
[1720713356896,22.6546,138.43,138.37,25.4642]
[1720713357089,22.6546,138.43,138.38,7.2264]
[1720713357292,22.6546,138.43,138.37,18.2374]
[1720713357532,22.6546,138.43,138.35,7.2278]
[1720713357716,29.8786,138.43,138.36,0.17]
[1720713358008,22.6546,138.43,138.36,7.3971]
[1720713358585,22.6546,138.43,138.36,0.17]
[1720713359211,22.6546,138.43,138.37,7.2269]
[1720713359412,22.6546,138.43,138.39,7.2254]
[1720713359790,22.0927,138.48,138.44,7.2228]
[1720713359992,22.0927,138.48,138.44,18.0582]
[1720713360192,7.2194,138.52,138.44,18.0582]
[1720713360193,22.0927,138.52,138.44,18.0582]
[1720713360404,22.0927,138.52,138.42,21.72]
[1720713360588,22.0927,138.52,138.41,18.4012]
[1720713360797,7.2198,138.51,138.42,0.34]
[1720713361191,22.0927,138.52,138.44,7.2229]
[1720713361399,22.0927,138.52,138.45,1.01157561]
[1720713361631,22.0927,138.52,138.46,0.84466954]
[1720713361837,29.3119,138.52,138.44,7.2229]
[1720713362211,29.312,138.52,138.43,25.4528]
[1720713362509,22.0927,138.52,138.44,7.3929]
[1720713362704,22.0927,138.52,138.42,52.3939]
[1720713362907,22.0927,138.52,138.41,7.3947]
[1720713363133,7.2203,138.5,138.42,7.2242]
[1720713363509,7.2197,138.51,138.43,7.2238]
[1720713363711,22.0927,138.52,138.44,7.2232]
[1720713364121,22.0927,138.52,138.42,18.0606]
[1720713364331,7.2227,138.46,138.38,100.0]
[1720713364637,7.2214,138.48,138.39,7.2255]
[1720713364947,22.0927,138.52,138.4,18.0632]
[1720713365232,22.0927,138.52,138.4,121.72]
[1720713365438,7.2208,138.49,138.38,100.0]
[1720713365649,7.2213,138.48,138.39,18.0638]
[1720713365804,36.9174568,138.54,138.37,7.2268]
[1720713365805,15.8678,138.45,138.37,7.2268]
[1720713366009,23.0908,138.45,138.36,18.0678]
[1720713366409,15.8678,138.45,138.39,7.2258]
[1720713366606,15.8678,138.45,138.38,25.2922]
[1720713366946,15.8678,138.45,138.35,100.0]
[1720713366947,7.2237,138.44,138.35,25.2968]
[1720713367109,7.2242,138.43,138.35,18.0691]
[1720713367443,7.2234,138.44,138.35,18.0691]
[1720713368304,23.0908,138.45,138.35,18.0691]
[1720713368644,15.8678,138.45,138.37,25.294]
[1720713368812,23.0906,138.45,138.37,25.294]
[1720713369643,7.2234,138.44,138.34,39.7903]
[1720713369810,7.2238,138.43,138.35,7.3976]
[1720713370149,23.0907,138.45,138.36,25.2959]
[1720713370434,15.8678,138.45,138.37,7.2267]
[1720713370624,15.8678,138.45,138.38,18.0654]
[1720713370935,15.8678,138.45,138.39,7.2256]
[1720713371245,15.8678,138.45,138.4,7.2251]
[1720713371615,23.0907,138.45,138.37,7.2265]
[1720713372006,15.8678,138.45,138.36,7.2274]
[1720713372212,15.8678,138.45,138.37,25.2937]
[1720713372578,15.8678,138.45,138.39,18.0646]
[1720713372749,15.8678,138.45,138.37,7.2269]
[1720713373041,7.2236,138.44,138.36,25.295]
[1720713373226,7.2242,138.43,138.33,118.0717]
[1720713373526,7.2235,138.44,138.36,7.2273]
[1720713373732,7.2237,138.44,138.35,25.2974]
[1720713373936,7.2239,138.43,138.35,25.2974]
[1720713374229,7.2235,138.44,138.35,25.2974]
[1720713374434,23.0907,138.45,138.36,7.2275]
[1720713374926,7.2234,138.44,138.35,25.2974]
[1720713375426,7.2238,138.43,138.35,25.2975]
[1720713375728,23.0908,138.45,138.36,7.2273]
[1720713376228,23.0908,138.45,138.37,7.2269]
[1720713376638,15.8678,138.45,138.36,7.2274]
[1720713376840,15.8678,138.45,138.37,7.2266]
[1720713377149,15.8678,138.45,138.39,7.2258]
[1720713377443,15.8678,138.45,138.41,7.2246]
[1720713377749,15.8678,138.45,138.39,25.2903]
[1720713378130,15.8678,138.45,138.39,18.0645]
[1720713378336,15.8678,138.45,138.38,7.3963]
[1720713378536,15.8678,138.45,138.36,18.0676]
[1720713378841,23.0906,138.45,138.36,25.2949]
[1720713379434,7.2233,138.44,138.36,25.2949]
[1720713379667,23.0907,138.45,138.36,25.2949]
[1720713379842,23.0907,138.45,138.37,7.2269]
[1720713380027,15.8678,138.45,138.37,7.2269]
[1720713380223,15.8678,138.45,138.36,25.2949]
[1720713380549,7.2247,138.42,138.33,18.0715]
[1720713380730,7.2247,138.42,138.33,25.3002]
[1720713380932,7.2247,138.42,138.33,18.0715]
[1720713381960,6.4561,138.44,138.35,18.0699]
[1720713382266,13.6797,138.44,138.36,7.2272]
[1720713382560,7.2239,138.43,138.35,25.2978]
[1720713382734,13.6799,138.44,138.36,7.2273]
[1720713382931,6.4561,138.44,138.37,18.0671]
[1720713383135,6.4561,138.44,138.36,7.2271]
[1720713383534,6.4561,138.44,138.37,7.2267]
[1720713383740,6.4561,138.44,138.36,25.296]
[1720713384739,6.4561,138.44,138.36,18.0687]
[1720713384959,7.2239,138.43,138.36,18.0687]
[1720713385283,7.2239,138.43,138.35,7.2278]
[1720713385453,6.4561,138.44,138.33,25.3006]
[1720713385656,6.4561,138.44,138.34,7.2285]
[1720713385657,7.2245,138.42,138.34,7.2285]
[1720713386235,6.4561,138.44,138.3,18.0758]
[1720713386440,36.1076,138.48,138.32,7.2291]
[1720713386441,7.225,138.41,138.32,7.2291]
[1720713386657,13.55013555,138.42,138.31,25.304]
[1720713386973,7.2258,138.4,138.31,25.304]
[1720713387147,7.226,138.39,138.31,18.074]
[1720713387352,6.4408,138.36,138.29,7.2309]
[1720713387742,6.4408,138.36,138.3,7.2306]
[1720713387941,6.4408,138.36,138.29,7.231]
[1720713388247,6.4408,138.36,138.31,18.075]
[1720713388576,1.4408,138.36,138.33,7.2289]
[1720713388867,16.3663,138.37,138.33,18.0726]
[1720713389179,16.3663,138.37,138.34,7.2284]
[1720713389563,16.3663,138.37,138.35,7.2278]
[1720713389872,16.3663,138.37,138.34,7.2284]
[1720713390078,16.3663,138.37,138.35,7.2279]
[1720713390446,16.3663,138.37,138.31,43.3789]
[1720713390669,23.5936,138.37,138.24,100.0]
[1720713390875,7.2276,138.36,138.27,25.3114]
[1720713391184,16.3663,138.37,138.24,100.0]
[1720713391185,16.3663,138.37,138.24,18.0835]
[1720713391397,15.1034,138.33,138.21,18.0883]
[1720713391712,13.3017,138.3,138.21,25.3235]
[1720713392001,6.071,138.3,138.22,7.2347]
[1720713392308,7.2312,138.29,138.21,18.0883]
[1720713392479,15.1034,138.29,138.18,7.2368]
[1720713392673,15.1034,138.29,138.2,7.2358]
[1720713392907,22.3346,138.29,138.2,7.2358]
[1720713393307,15.1034,138.29,138.19,18.0904]
[1720713393511,7.2322,138.27,138.18,7.2368]
[1720713394310,7.2318,138.28,138.19,7.2363]
[1720713394481,22.3347,138.29,138.2,7.2358]
[1720713394910,15.1034,138.29,138.2,18.0892]
[1720713395085,22.3347,138.29,138.2,25.3248]
[1720713395901,15.1034,138.29,138.17,18.0933]
[1720713396279,7.2317,138.28,138.19,7.2359]
[1720713396481,15.1034,138.29,138.19,7.2359]
[1720713396482,15.1034,138.29,138.21,7.2352]
[1720713396810,22.3346,138.29,138.2,7.2357]
[1720713397001,7.2318,138.28,138.19,25.3266]
[1720713398108,15.1034,138.29,138.19,25.3266]
[1720713398483,7.2319,138.28,138.19,25.3266]
[1720713398806,15.1034,138.29,138.23,7.2338]
[1720713399390,15.1034,138.29,138.24,7.2337]
[1720713399594,15.1034,138.29,138.23,18.0853]
[1720713399999,15.1034,138.29,138.22,7.2347]
[1720713400207,15.1034,138.29,138.23,7.2342]
[1720713400386,15.1034,138.29,138.24,7.2336]
[1720713400586,15.1034,138.29,138.25,7.233]
[1720713400807,15.1034,138.29,138.24,25.3176]
[1720713401013,15.1034,138.29,138.22,21.89]
[1720713401193,15.1034,138.29,138.22,18.2565]
[1720713401394,15.1034,138.29,138.16,207.55531881]
[1720713401697,22.3349,138.29,138.2,7.2358]
[1720713402095,15.1034,138.29,138.19,18.0903]
[1720713402413,7.2318,138.28,138.19,25.3263]
[1720713402602,15.1034,138.29,138.19,18.0903]
[1720713402803,22.3346,138.29,138.2,7.2355]
[1720713403417,22.3346,138.29,138.19,25.3265]
[1720713403418,7.2317,138.28,138.19,25.3265]
[1720713404203,15.1034,138.29,138.2,0.17]
[1720713404411,15.1034,138.29,138.21,18.0875]
[1720713404601,22.3349,138.29,138.21,18.0875]
[1720713404797,22.3349,138.29,138.2,7.4054]
[1720713405409,15.1034,138.29,138.22,7.2347]
[1720713405594,15.1034,138.29,138.2,18.2593]
[1720713405911,15.1034,138.29,138.21,7.2351]
[1720713406116,22.3346,138.29,138.2,25.4951]
[1720713406308,15.1034,138.29,138.21,7.2351]
[1720713406515,15.1034,138.29,138.2,39.9793]
[1720713406713,15.1034,138.29,138.2,21.89]
[1720713406925,15.1034,138.29,138.2,0.17]
[1720713407220,15.1034,138.29,138.21,21.72]
[1720713407518,15.1034,138.29,138.23,25.3196]
[1720713407734,15.1034,138.29,138.23,18.0854]
[1720713408045,15.1034,138.29,138.23,25.3196]
[1720713408402,15.1034,138.29,138.23,18.0854]
[1720713409337,15.1034,138.29,138.21,7.2351]
[1720713409509,22.3348,138.29,138.2,25.4949]
[1720713409706,22.3348,138.29,138.21,0.17]
[1720713410017,15.1034,138.29,138.21,7.4053]
[1720713410202,15.1034,138.29,138.21,0.17]
[1720713410410,15.1034,138.29,138.22,39.8064]
[1720713410632,15.1034,138.29,138.24,7.2334]
[1720713410804,15.1034,138.29,138.22,25.321]
[1720713411005,22.3346,138.29,138.21,0.17]
[1720713411827,15.1034,138.29,138.21,7.4052]
[1720713412004,15.1034,138.29,138.22,7.2347]
[1720713412200,15.1034,138.29,138.21,39.978]
[1720713412407,15.1034,138.29,138.23,7.2341]
[1720713412607,15.1034,138.29,138.24,7.2337]
[1720713412928,15.1034,138.29,138.23,18.0855]
[1720713413129,15.1034,138.29,138.22,7.4047]
[1720713413338,15.1034,138.29,138.23,7.2341]
[1720713413506,15.1034,138.29,138.23,0.17]
[1720713413702,15.1034,138.29,138.22,7.4048]
[1720713414236,15.1034,138.29,138.21,25.4922]
[1720713414713,15.1034,138.29,138.23,18.0855]
[1720713414920,15.1034,138.29,138.24,7.2336]
[1720713415428,15.1034,138.29,138.23,18.0855]
[1720713415429,15.1034,138.29,138.23,25.3196]
[1720713415625,15.1034,138.29,138.23,18.0855]
[1720713415829,15.1034,138.29,138.25,18.0828]
[1720713416207,15.1034,138.29,138.25,25.3159]
[1720713416712,15.1034,138.29,138.26,7.2326]
[1720713417529,6.071,138.3,138.25,18.0828]
[1720713417530,6.071,138.3,138.25,25.3158]
[1720713417746,6.071,138.3,138.24,0.17]
[1720713417916,6.071,138.3,138.23,52.5742]